bitfinex-derivatives/quotes_BTCF0:USTF0_20250327
["timestamp","ask_amount","ask_price","bid_price","bid_amount"]
[1743059681274,0.1154289,87380.0,87379.0,0.1775276]
[1743059681567,0.11698891,87380.0,87379.0,0.5383276]
[1743059681771,0.1486289,87380.0,87379.0,0.5383276]
[1743059686764,0.1802289,87380.0,87379.0,0.5383276]
[1743059689776,0.1802289,87380.0,87379.0,0.5069276]
[1743059689969,0.18186891,87380.0,87379.0,0.1461276]
[1743059690573,0.18186891,87380.0,87379.0,0.1790276]
[1743059692767,0.18186891,87380.0,87379.0,0.5398276]
[1743059697175,0.18186891,87380.0,87379.0,0.74546864]
[1743059697382,0.1802289,87380.0,87379.0,0.74546864]
[1743059698272,0.18178891,87380.0,87379.0,0.74546864]
[1743059698980,0.18178891,87380.0,87379.0,0.7604462]
[1743059699183,0.1802289,87380.0,87379.0,0.74546864]
[1743059699480,0.1802289,87380.0,87379.0,0.38466864]
[1743059699684,0.18178891,87380.0,87379.0,0.38466864]
[1743059700381,0.18178891,87380.0,87379.0,0.39972737]
[1743059700579,0.1802289,87380.0,87379.0,0.39972737]
[1743059701085,0.1802289,87380.0,87379.0,0.19408633]
[1743059701268,0.18178891,87380.0,87379.0,0.19408633]
[1743059705588,0.18178891,87380.0,87379.0,0.1790276]
[1743059706088,0.18178891,87380.0,87379.0,0.5398276]
[1743059706787,0.18178891,87380.0,87379.0,0.1790276]
[1743059706988,0.18178891,87380.0,87379.0,0.5398276]
[1743059707886,0.00256001,87380.0,87379.0,0.55493022]
[1743059708079,0.001,87380.0,87379.0,0.58773022]
[1743059708477,0.1154289,87380.0,87379.0,0.58773022]
[1743059708685,0.1154289,87380.0,87379.0,0.55487867]
[1743059709176,0.11698891,87380.0,87379.0,0.55487867]
[1743059709378,0.1772289,87380.0,87379.0,0.55487867]
[1743059709887,0.17886891,87380.0,87379.0,0.55487867]
[1743059710486,0.17886891,87380.0,87379.0,0.5069276]
[1743059710698,0.1772289,87380.0,87379.0,0.5069276]
[1743059710889,0.06436001,87380.0,87379.0,0.5069276]
[1743059711087,0.0321,87380.0,87379.0,0.58666197]
[1743059711291,0.00017137,87387.0,87386.0,0.114421]
[1743059711495,0.00017137,87387.0,87386.0,0.49005366]
[1743059711496,0.00173138,87387.0,87386.0,0.49005366]
[1743059711687,0.00173138,87387.0,87386.0,1.98683423]
[1743059711993,0.00017137,87387.0,87386.0,1.98683423]
[1743059712197,0.00181138,87387.0,87386.0,2.08263423]
[1743059712398,0.00017137,87387.0,87386.0,2.08263423]
[1743059712595,0.00281138,87387.0,87386.0,2.08263423]
[1743059712787,0.00117137,87387.0,87386.0,2.08263423]
[1743059712990,0.00277138,87387.0,87386.0,2.08263423]
[1743059713385,0.00117137,87387.0,87386.0,2.08263423]
[1743059713988,0.41668,87402.0,87399.0,0.114404]
[1743059714193,0.17401924,87400.0,87399.0,0.584044]
[1743059714389,0.17245923,87400.0,87399.0,0.584044]
[1743059714581,0.17245923,87400.0,87399.0,2.084044]
[1743059714789,0.17245923,87400.0,87399.0,2.147644]
[1743059714989,0.17245923,87400.0,87399.0,2.15625456]
[1743059716999,8e-05,87407.0,87406.0,0.1143948]
[1743059717191,0.00172001,87407.0,87406.0,0.4751948]
[1743059717587,0.00172001,87407.0,87406.0,2.0361948]
[1743059717794,8e-05,87407.0,87406.0,2.0361948]
[1743059718697,8e-05,87407.0,87406.0,2.04792782]
[1743059719390,8e-05,87407.0,87406.0,2.0361948]
[1743059719391,0.1144735,87407.0,87406.0,2.0361948]
[1743059719589,0.1144735,87407.0,87406.0,0.6449948]
[1743059719590,0.1764735,87407.0,87406.0,0.6449948]
[1743059719789,0.17803351,87407.0,87406.0,0.6449948]
[1743059720494,0.1764735,87407.0,87406.0,0.65655469]
[1743059720694,0.1764735,87407.0,87406.0,0.6449948]
[1743059722102,0.1764735,87407.0,87406.0,0.6449548]
[1743059727704,0.1764735,87407.0,87406.0,0.4751948]
[1743059733301,0.1764735,87407.0,87406.0,0.5372948]
[1743059740113,0.1764735,87407.0,87406.0,0.1764948]
[1743059740413,0.1764735,87407.0,87406.0,0.5372948]
[1743059741912,0.1764735,87407.0,87406.0,0.1764948]
[1743059742107,0.1764735,87407.0,87406.0,0.5372948]
[1743059745305,0.03208,87407.0,87406.0,0.5372948]
[1743059745509,0.03208,87407.0,87406.0,0.5675948]
[1743059745707,0.032,87407.0,87406.0,0.5675948]
[1743059746010,0.1463935,87407.0,87406.0,0.5675948]
[1743059748223,0.1463935,87407.0,87406.0,0.5372948]
[1743059753521,0.1463935,87407.0,87406.0,0.1764948]
[1743059753723,0.1463935,87407.0,87406.0,0.5372948]
[1743059754811,0.1257935,87407.0,87406.0,0.5372948]
[1743059755213,0.1257935,87407.0,87406.0,0.1764948]
[1743059755615,0.1257935,87407.0,87406.0,0.5372948]
[1743059756519,0.1257935,87407.0,87406.0,0.1764948]
[1743059756725,0.1257935,87407.0,87406.0,0.5372948]
[1743059759418,0.1257935,87407.0,87406.0,0.1764948]
[1743059759617,0.1257935,87407.0,87406.0,0.5372948]
[1743059760628,0.1257935,87407.0,87406.0,0.5697948]
[1743059760827,0.0114,87407.0,87406.0,0.5697948]
[1743059761122,0.00048,87409.0,87408.0,0.1143922]
[1743059761526,0.00048,87409.0,87408.0,0.1777922]
[1743059761821,0.0004,87409.0,87408.0,0.1777922]
[1743059762417,0.1147909,87409.0,87408.0,0.1777922]
[1743059762629,0.1147909,87409.0,87408.0,0.2863122]
[1743059762822,0.0004,87409.0,87408.0,0.2863122]
[1743059763021,0.0955,87409.0,87408.0,0.2863122]
[1743059763232,0.09714001,87409.0,87408.0,0.2863122]
[1743059763419,0.0955,87409.0,87408.0,0.2863122]
[1743059765530,0.0955,87409.0,87408.0,0.6471122]
[1743059766234,0.0955,87409.0,87408.0,0.2863122]
[1743059766432,0.0955,87409.0,87408.0,0.6471122]
[1743059767323,0.0955,87409.0,87408.0,0.2863122]
[1743059767518,0.0955,87409.0,87408.0,0.6471122]
[1743059769521,0.0955,87409.0,87408.0,0.92141048]
[1743059771230,0.0955,87409.0,87408.0,0.92133048]
[1743059771625,0.0955,87409.0,87408.0,0.56053048]
[1743059771822,0.0955,87409.0,87408.0,0.92133048]
[1743059779045,0.0004,87409.0,87408.0,0.92133048]
[1743059779435,0.0004,87409.0,87408.0,2.42133048]
[1743059782245,0.0004,87409.0,87408.0,2.78213048]
[1743059783337,0.0004,87409.0,87408.0,2.5078322]
[1743059788353,0.0004,87409.0,87408.0,1.7862322]
[1743059788541,0.0004,87409.0,87408.0,2.5078322]
[1743059793145,0.0004,87409.0,87408.0,1.7862322]
[1743059793357,0.0004,87409.0,87408.0,2.5078322]
[1743059799949,8e-05,87411.0,87410.0,0.1143896]
[1743059800155,0.01056,87413.0,87412.0,0.114387]
[1743059800450,0.01064,87413.0,87412.0,0.114387]
[1743059800651,0.01064,87413.0,87412.0,1.614387]
[1743059800863,0.01064,87413.0,87412.0,1.679687]
[1743059801071,0.01064,87413.0,87412.0,1.787927]
[1743059802267,0.01064,87413.0,87412.0,2.509527]
[1743059805375,1e-07,87413.0,87412.0,2.509527]
[1743059805576,1e-07,87413.0,87412.0,2.609527]
[1743059805875,1e-07,87413.0,87412.0,3.03971124]
[1743059810270,1e-07,87413.0,87412.0,3.94587124]
[1743059810576,0.02996397,87416.0,87415.0,0.1143831]
[1743059811170,0.02996397,87416.0,87415.0,1.6143831]
[1743059811369,0.02996397,87416.0,87415.0,1.6777831]
[1743059812173,0.0318,87417.0,87415.0,1.6777831]
[1743059812174,0.0318,87417.0,87416.0,0.1143818]
[1743059812374,0.0318,87417.0,87416.0,0.1789818]
[1743059812773,0.0318,87417.0,87416.0,1.6789818]
[1743059814482,0.0624,87417.0,87416.0,2.4005818]
[1743059816875,0.0624,87417.0,87416.0,2.83076604]
[1743059817685,0.01625853,87417.0,87416.0,2.83076604]
[1743059818382,0.01809853,87417.0,87416.0,2.10916604]
[1743059818579,0.01809853,87417.0,87416.0,2.83076604]
[1743059819283,0.00184,87417.0,87416.0,2.83076604]
[1743059821477,0.03264,87417.0,87416.0,2.83076604]
[1743059822282,0.06464,87417.0,87416.0,2.83076604]
[1743059822685,0.06464,87417.0,87416.0,2.10916604]
[1743059822893,0.06464,87417.0,87416.0,2.83076604]
[1743059823085,0.0628,87417.0,87416.0,2.83076604]
[1743059823277,0.0628,87417.0,87416.0,2.93896604]
[1743059824081,0.06464,87417.0,87416.0,2.93896604]
[1743059824280,0.06464,87417.0,87416.0,2.21736604]
[1743059824479,0.06464,87417.0,87416.0,2.93896604]
[1743059824882,0.03264,87417.0,87416.0,2.93896604]
[1743059826385,0.03264,87417.0,87416.0,2.82458424]
[1743059827488,0.03264,87417.0,87416.0,2.93896604]
[1743059827989,0.0308,87417.0,87416.0,2.93896604]
[1743059828284,0.0632,87417.0,87416.0,2.93896604]
[1743059828486,0.06504,87417.0,87416.0,2.93896604]
[1743059830176,0.06504,87417.0,87416.0,2.79866604]
[1743059830377,0.06504,87417.0,87416.0,2.90686604]
[1743059831882,0.06504,87417.0,87416.0,2.79866604]
[1743059832088,0.06504,87417.0,87416.0,2.90686604]
[1743059833088,0.0632,87417.0,87416.0,2.90686604]
[1743059833788,0.06504,87417.0,87416.0,2.90686604]
[1743059835090,0.06504,87417.0,87416.0,3.31868951]
[1743059838192,0.06504,87417.0,87416.0,2.90686604]
[1743059842585,0.06504,87417.0,87416.0,3.41580987]
[1743059845597,0.03264,87417.0,87416.0,3.41580987]
[1743059845988,0.03264,87417.0,87416.0,2.90686604]
[1743059847896,0.13264,87417.0,87416.0,2.90686604]
[1743059849700,0.13264,87417.0,87416.0,2.18526604]
[1743059850003,0.13264,87417.0,87416.0,2.90686604]
[1743059851700,0.13264,87417.0,87416.0,2.18526604]
[1743059852002,0.13264,87417.0,87416.0,2.90686604]
[1743059853090,0.13264,87417.0,87416.0,3.31842916]
[1743059854188,0.13264,87417.0,87416.0,3.21022916]
[1743059854496,0.13264,87417.0,87416.0,3.31842916]
[1743059856792,0.13264,87417.0,87416.0,2.90686604]
[1743059857791,0.02355379,87418.0,87417.0,0.1143804]
[1743059858103,0.02355379,87418.0,87417.0,0.2085804]
[1743059858700,0.02355379,87418.0,87417.0,0.9301804]
[1743059860000,0.13793289,87418.0,87417.0,0.7524]
[1743059860199,0.13793289,87418.0,87417.0,0.3608]
[1743059860400,0.1143844,87414.0,87413.0,0.00016]
[1743059860702,0.11602441,87414.0,87413.0,0.00016]
[1743059860890,0.0571941,87411.0,87404.0,0.1082]
[1743059861095,0.1143962,87405.0,87404.0,0.1082]
[1743059861304,0.1143962,87405.0,87404.0,0.2225975]
[1743059861494,0.1143962,87405.0,87404.0,0.1082]
[1743059861907,0.11595621,87405.0,87404.0,0.1082]
[1743059862107,0.11595621,87405.0,87404.0,0.2225975]
[1743059862312,0.11595621,87405.0,87404.0,0.1143975]
[1743059862505,0.1143975,87404.0,87403.0,8e-05]
[1743059862700,0.14495751,87404.0,87403.0,8e-05]
[1743059862900,0.29495751,87404.0,87403.0,8e-05]
[1743059863109,0.29395751,87404.0,87403.0,8e-05]
[1743059863309,0.1144014,87401.0,87400.0,0.2288036]
[1743059863509,0.11500141,87401.0,87400.0,0.2288036]
[1743059863811,0.11400141,87401.0,87400.0,0.1144016]
[1743059865005,0.11200141,87401.0,87400.0,0.1144016]
[1743059865713,0.11200141,87401.0,87400.0,0.1164016]
[1743059866611,0.11200141,87401.0,87400.0,0.1184016]
[1743059866806,0.11200141,87401.0,87400.0,0.004]
[1743059869713,0.11200141,87401.0,87400.0,0.1184027]
[1743059870714,0.11200141,87401.0,87400.0,0.004]
[1743059870715,0.47280141,87401.0,87400.0,0.004]
[1743059871705,0.88940141,87401.0,87400.0,0.004]
[1743059872104,0.88940141,87401.0,87396.0,1e-08]
[1743059872105,0.1144066,87397.0,87396.0,1e-08]
[1743059872414,0.11596661,87397.0,87396.0,1e-08]
[1743059874114,0.11596661,87397.0,87396.0,0.00300001]
[1743059875417,0.11596661,87397.0,87396.0,0.00600001]
[1743059875618,0.11596661,87397.0,87396.0,0.00300001]
[1743059875910,0.12938924,87397.0,87396.0,0.00300001]
[1743059876312,0.12938924,87397.0,87396.0,1e-08]
[1743059876512,0.13138924,87397.0,87396.0,1e-08]
[1743059876815,0.28138924,87397.0,87396.0,1e-08]
[1743059877603,0.69798924,87397.0,87396.0,1e-08]
[1743059877816,0.54798924,87397.0,87396.0,1e-08]
[1743059882215,0.54798924,87397.0,87396.0,0.03000001]
[1743059887210,0.54798924,87397.0,87396.0,1e-08]
[1743059887926,0.55371199,87397.0,87396.0,0.03070001]
[1743059889009,0.1144158,87390.0,87389.0,0.031]
[1743059889220,0.11597581,87390.0,87389.0,0.031]
[1743059889823,0.17557581,87390.0,87389.0,0.031]
[1743059890136,0.18129864,87390.0,87389.0,0.031]
[1743059890420,0.0572152,87379.0,87374.0,8e-05]
[1743059890626,0.1144341,87376.0,87374.0,0.1144358]
[1743059890923,0.12770801,87376.0,87375.0,0.1144354]
[1743059892323,0.12770801,87376.0,87375.0,0.1776354]
[1743059892624,0.12770801,87376.0,87375.0,0.1806354]
[1743059892824,0.12770801,87376.0,87375.0,0.1826354]
[1743059893218,0.12770801,87376.0,87375.0,0.0672]
[1743059893421,0.12770801,87376.0,87375.0,0.0652]
[1743059893633,0.12770801,87376.0,87375.0,0.0662]
[1743059894325,0.12770801,87376.0,87375.0,0.1806354]
[1743059894719,0.12770801,87376.0,87375.0,0.0662]
[1743059896619,0.12770801,87376.0,87375.0,0.1806354]
[1743059896819,0.12770801,87376.0,87375.0,0.0662]
[1743059898534,0.12770801,87376.0,87375.0,0.0652]
[1743059898822,0.12770801,87376.0,87375.0,0.0632]
[1743059899621,0.11599411,87376.0,87375.0,0.0632]
[1743059900429,0.12723938,87376.0,87375.0,0.0632]
[1743059901533,0.22964461,87376.0,87375.0,0.0632]
[1743059902032,0.26154461,87376.0,87375.0,0.0632]
[1743059902823,0.22964461,87376.0,87375.0,0.0632]
[1743059905928,0.12723938,87376.0,87375.0,0.0632]
[1743059907722,0.15773938,87376.0,87375.0,0.0632]
[1743059908630,0.15773938,87376.0,87368.0,0.00045783]
[1743059908631,0.0572182,87375.0,87368.0,0.00045783]
[1743059908823,0.1144433,87369.0,87368.0,0.00045783]
[1743059909025,0.12176744,87369.0,87368.0,0.00045783]
[1743059909331,0.1217678,87369.0,87368.0,0.00045783]
[1743059909830,0.1847678,87369.0,87368.0,0.00045783]
[1743059910230,0.1847678,87369.0,87368.0,0.00145783]
[1743059910432,0.1847678,87369.0,87368.0,0.00345783]
[1743059910929,0.2933278,87369.0,87368.0,0.00345783]
[1743059911322,0.2933278,87369.0,87368.0,0.00145783]
[1743059911523,0.2933278,87369.0,87368.0,0.00245783]
[1743059912630,0.7099278,87369.0,87368.0,0.00245783]
[1743059913020,0.70992789,87369.0,87368.0,0.00245783]
[1743059913433,0.70992789,87369.0,87368.0,0.06395783]
[1743059913628,0.70988789,87369.0,87368.0,0.06395783]
[1743059915540,0.71088789,87369.0,87368.0,0.06295783]
[1743059916042,0.71288789,87369.0,87368.0,0.06195783]
[1743059917440,0.71488789,87369.0,87368.0,0.06195783]
[1743059921640,0.71488789,87369.0,87368.0,0.00045783]
[1743059922542,1.07568789,87369.0,87368.0,0.00045783]
[1743059923740,1.1313365,87369.0,87368.0,0.00045783]
[1743059924142,1.12561192,87369.0,87368.0,0.00045783]
[1743059924347,1.13133657,87369.0,87368.0,0.00045783]
[1743059924553,1.13137657,87369.0,87368.0,0.00045783]
[1743059926044,1.13137658,87369.0,87368.0,0.00045783]
[1743059931638,1.13137661,87369.0,87368.0,0.00045783]
[1743059931835,1.075728,87369.0,87368.0,0.00045783]
[1743059932652,1.07572803,87369.0,87368.0,0.00045783]
[1743059933051,0.1144446,87368.0,87363.0,0.0624]
[1743059933251,0.1144498,87364.0,87363.0,0.0624]
[1743059933554,0.12177453,87364.0,87363.0,0.0624]
[1743059934144,0.18447453,87364.0,87363.0,0.0624]
[1743059934655,0.19300039,87364.0,87363.0,0.0624]
[1743059934844,0.55380039,87364.0,87363.0,0.0624]
[1743059935045,0.55480039,87364.0,87363.0,0.0624]
[1743059936355,0.78112368,87364.0,87363.0,0.0624]
[1743059936747,0.78212368,87364.0,87363.0,0.0624]
[1743059937351,0.78212386,87364.0,87363.0,0.0624]
[1743059940055,0.61145266,87364.0,87363.0,0.0624]
[1743059942963,0.114459,87357.0,87356.0,0.033]
[1743059943162,0.48258391,87357.0,87356.0,0.0661]
[1743059944250,0.51568391,87357.0,87356.0,0.0995]
[1743059945557,0.5273561,87357.0,87356.0,0.0995]
[1743059946462,0.9439561,87357.0,87356.0,0.0665]
[1743059947253,0.9764561,87357.0,87356.0,0.0665]
[1743059948255,0.99069833,87357.0,87356.0,0.0665]
[1743059948561,1.25069262,87357.0,87356.0,0.0665]
[1743059949050,0.88989262,87357.0,87356.0,0.0665]
[1743059949261,1.23645039,87357.0,87356.0,0.0665]
[1743059950864,0.87565039,87357.0,87356.0,0.0665]
[1743059951057,1.23645039,87357.0,87356.0,0.0665]
[1743059951258,0.87565039,87357.0,87356.0,0.0665]
[1743059951565,1.03210819,87357.0,87356.0,0.0665]
[1743059953968,0.1144603,87356.0,87355.0,0.00017161]
[1743059954170,0.15368521,87356.0,87355.0,0.00017161]
[1743059954368,0.21418521,87356.0,87355.0,0.00017161]
[1743059954968,0.22842744,87356.0,87355.0,0.00017161]
[1743059955168,0.22842744,87356.0,87355.0,0.00117161]
[1743059955864,0.19652744,87356.0,87355.0,0.00117161]
[1743059956169,0.18228521,87356.0,87355.0,0.00117161]
[1743059956471,0.25217953,87356.0,87355.0,0.00217161]
[1743059956770,0.66877953,87356.0,87355.0,0.00217161]
[1743059957072,0.6545373,87356.0,87355.0,0.00217161]
[1743059957477,1.0153373,87356.0,87355.0,0.00217161]
[1743059957667,1.0153373,87356.0,87355.0,0.06617161]
[1743059963075,1.01533798,87356.0,87355.0,0.06617161]
[1743059963373,1.12365798,87356.0,87355.0,0.06617161]
[1743059970678,1.01533798,87356.0,87355.0,0.06617161]
[1743059970981,1.12365798,87356.0,87355.0,0.06617161]
[1743059971277,0.76285798,87356.0,87355.0,0.06617161]
[1743059971487,1.12365798,87356.0,87355.0,0.06617161]
[1743059972496,0.76285798,87356.0,87355.0,0.06617161]
[1743059972786,1.12365798,87356.0,87355.0,0.06617161]
[1743059973776,0.76285798,87356.0,87355.0,0.06617161]
[1743059973979,1.12365798,87356.0,87355.0,0.06617161]
[1743059974276,1.01533798,87356.0,87355.0,0.06617161]
[1743059974478,1.12365798,87356.0,87355.0,0.06617161]
[1743059976475,1.01533798,87356.0,87355.0,0.06617161]
[1743059976687,1.12365798,87356.0,87355.0,0.06617161]
[1743059977577,1.12365798,87356.0,87355.0,0.00217161]
[1743059978385,1.12365798,87356.0,87355.0,0.03237161]
[1743059980779,0.76285798,87356.0,87355.0,0.03237161]
[1743059980986,1.12365798,87356.0,87355.0,0.03237161]
[1743059981682,1.12365798,87356.0,87355.0,0.00217161]
[1743059983788,1.12365802,87356.0,87355.0,0.00217161]
[1743059984085,1.12365802,87356.0,87355.0,0.03267161]
[1743059986688,1.24416612,87356.0,87355.0,0.03267161]
[1743059990485,1.12365802,87356.0,87355.0,0.03267161]
[1743059990683,1.12365802,87356.0,87355.0,0.06397161]
[1743059994581,0.47957772,87356.0,87355.0,0.17843321]
[1743059994788,0.59403802,87356.0,87355.0,0.17843321]
[1743059995396,0.59403741,87356.0,87355.0,0.17843321]
[1743059995618,0.95483741,87356.0,87355.0,0.06397161]
[1743059996095,1.01673741,87356.0,87355.0,0.06397161]
[1743059998893,1.01673774,87356.0,87355.0,0.06397161]
[1743060000089,1.01673774,87356.0,87355.0,0.03347161]
[1743060000895,1.01673774,87356.0,87355.0,0.00217161]
[1743060002299,1.01673774,87356.0,87355.0,0.03317161]
[1743060003195,1.01673774,87356.0,87355.0,0.00217161]
[1743060003798,1.01673774,87356.0,87355.0,0.03367161]
[1743060012095,1.01673774,87356.0,87355.0,0.00217161]
[1743060013000,1.01673774,87356.0,87355.0,0.03447161]
[1743060013506,1.01673774,87356.0,87355.0,0.00217161]
[1743060015208,1.03099278,87356.0,87355.0,0.00217161]
[1743060015907,1.01673774,87356.0,87355.0,0.00217161]
[1743060019422,1.22206841,87356.0,87355.0,0.00217161]
[1743060020822,0.86126841,87356.0,87355.0,0.00217161]
[1743060022927,0.65593774,87356.0,87355.0,0.00217161]
[1743060025021,1.01673774,87356.0,87355.0,0.00217161]
[1743060028528,0.65593774,87356.0,87355.0,0.00217161]
[1743060028928,1.01673774,87356.0,87355.0,0.00217161]
[1743060031429,0.65593774,87356.0,87355.0,0.00217161]
[1743060031632,1.01673774,87356.0,87355.0,0.00217161]
[1743060032526,0.65593774,87356.0,87355.0,0.00217161]
[1743060032729,1.01673774,87356.0,87355.0,0.00217161]
[1743060037526,1.01673778,87356.0,87355.0,0.00217161]
[1743060038739,1.18792697,87356.0,87355.0,0.00217161]
[1743060042339,1.01673778,87356.0,87355.0,0.00217161]
[1743060043344,0.65593778,87356.0,87355.0,0.00217161]
[1743060043531,1.01673778,87356.0,87355.0,0.00217161]
[1743060044034,0.65593778,87356.0,87355.0,0.00217161]
[1743060044237,1.01673778,87356.0,87355.0,0.00217161]
[1743060050551,1.0425124,87356.0,87355.0,0.00217161]
[1743060050848,1.04823779,87356.0,87355.0,0.00217161]
[1743060058249,0.68743779,87356.0,87355.0,0.00217161]
[1743060058648,1.04823779,87356.0,87355.0,0.00217161]
[1743060059246,1.01673779,87356.0,87355.0,0.00217161]
[1743060063551,0.114476,87344.0,87336.0,0.000458]
[1743060063756,0.47528,87341.0,87336.0,0.000458]
[1743060064051,0.4825654,87341.0,87339.0,8e-05]
[1743060064359,0.4825654,87341.0,87338.0,8e-05]
[1743060064858,0.4825654,87341.0,87340.0,0.20919327]
[1743060065050,0.48256644,87341.0,87340.0,0.004]
[1743060065459,0.1084826,87339.0,87338.0,8e-05]
[1743060065653,0.12704609,87339.0,87338.0,8e-05]
[1743060066150,0.12704609,87339.0,87336.0,0.20565127]
[1743060066151,0.1144852,87337.0,87336.0,0.20565127]
[1743060066350,0.11977164,87337.0,87336.0,0.20573127]
[1743060066751,0.11977164,87337.0,87336.0,0.20565127]
[1743060067146,0.18117164,87337.0,87336.0,0.20565127]
[1743060067551,0.59777164,87337.0,87336.0,0.20565127]
[1743060067752,0.59577164,87337.0,87336.0,0.20565127]
[1743060068456,0.59677164,87337.0,87336.0,0.20565127]
[1743060069362,0.59777164,87337.0,87336.0,0.20565127]
[1743060069956,0.77365724,87337.0,87336.0,0.000458]
[1743060070968,0.1144892,87334.0,87333.0,8e-05]
[1743060071265,0.12177564,87334.0,87333.0,8e-05]
[1743060071460,0.12177564,87334.0,87333.0,1.50008]
[1743060071864,0.18587564,87334.0,87333.0,1.50008]
[1743060072065,0.18987564,87334.0,87333.0,8e-05]
[1743060072655,0.18987564,87334.0,87333.0,1.50008]
[1743060073458,0.18987564,87334.0,87333.0,8e-05]
[1743060074056,0.55067564,87334.0,87333.0,8e-05]
[1743060075053,0.55367564,87334.0,87333.0,8e-05]
[1743060076262,0.55367646,87334.0,87333.0,8e-05]
[1743060077074,0.97027646,87334.0,87333.0,8e-05]
[1743060080464,0.60947646,87334.0,87333.0,8e-05]
[1743060080666,0.97027646,87334.0,87333.0,8e-05]
[1743060084978,0.96727646,87334.0,87333.0,8e-05]
[1743060085186,1.14055557,87334.0,87333.0,8e-05]
[1743060089677,1.02595072,87334.0,87333.0,8e-05]
[1743060091186,1.04014015,87334.0,87333.0,8e-05]
[1743060091386,1.02595072,87334.0,87333.0,8e-05]
[1743060093185,0.66515072,87334.0,87333.0,8e-05]
[1743060093384,1.02595072,87334.0,87333.0,8e-05]
[1743060096281,1.04017587,87334.0,87333.0,8e-05]
[1743060097386,1.02595072,87334.0,87333.0,8e-05]
[1743060098087,1.04019488,87334.0,87333.0,8e-05]
[1743060098294,0.67939488,87334.0,87333.0,8e-05]
[1743060098479,1.04019488,87334.0,87333.0,8e-05]
[1743060099398,1.02595072,87334.0,87333.0,8e-05]
[1743060100092,1.04019474,87334.0,87333.0,8e-05]
[1743060100385,1.04019472,87334.0,87333.0,8e-05]
[1743060100591,1.02022347,87334.0,87333.0,8e-05]
[1743060100778,1.04019486,87334.0,87333.0,8e-05]
[1743060100983,1.02595086,87334.0,87333.0,8e-05]
[1743060101690,1.13431086,87334.0,87333.0,8e-05]
[1743060103490,1.15756768,87334.0,87333.0,8e-05]
[1743060104193,0.96185086,87334.0,87333.0,8e-05]
[1743060104394,1.07021086,87334.0,87333.0,8e-05]
[1743060104897,1.1444287,87334.0,87333.0,8e-05]
[1743060105086,1.2527887,87334.0,87333.0,8e-05]
[1743060105585,1.26703318,87334.0,87333.0,8e-05]
[1743060105990,1.2527887,87334.0,87333.0,8e-05]
[1743060106694,1.1444287,87334.0,87333.0,8e-05]
[1743060106893,1.2527887,87334.0,87333.0,8e-05]
[1743060108197,1.27617885,87334.0,87333.0,8e-05]
[1743060109886,1.2527887,87334.0,87333.0,8e-05]
[1743060112289,1.09646763,87334.0,87333.0,8e-05]
[1743060112493,1.0822287,87334.0,87333.0,8e-05]
[1743060112894,1.0822287,87334.0,87333.0,0.06588]
[1743060114597,0.7214287,87334.0,87333.0,0.06588]
[1743060117707,0.72142783,87334.0,87333.0,0.06588]
[1743060117905,0.12877573,87334.0,87333.0,0.06588]
[1743060118294,0.19087573,87334.0,87333.0,0.06588]
[1743060118800,0.19087573,87334.0,87333.0,0.0658]
[1743060120004,0.29923573,87334.0,87333.0,0.0658]
[1743060123899,0.71583573,87334.0,87333.0,0.0658]
[1743060124402,0.71010921,87334.0,87333.0,0.0658]
[1743060124602,0.71583584,87334.0,87333.0,0.0658]
[1743060125909,0.77150407,87334.0,87333.0,0.0658]
[1743060127496,1.13230407,87334.0,87333.0,0.0658]
[1743060129504,0.77150407,87334.0,87333.0,0.0658]
[1743060129705,1.13230407,87334.0,87333.0,0.0658]
[1743060129901,0.77150407,87334.0,87333.0,0.0658]
[1743060130105,1.13230407,87334.0,87333.0,0.0658]
[1743060130508,1.02394407,87334.0,87333.0,0.0658]
[1743060130809,0.1145062,87321.0,87320.0,0.00045808]
[1743060131114,0.11606621,87321.0,87320.0,0.00045808]
[1743060131606,0.12179347,87321.0,87320.0,0.00045808]
[1743060132102,0.15279347,87321.0,87320.0,0.00045808]
[1743060132716,0.15379347,87321.0,87320.0,0.00045808]
[1743060133306,0.15379347,87321.0,87320.0,0.03105808]
[1743060133612,0.16532068,87321.0,87320.0,0.03105808]
[1743060133808,0.16632071,87321.0,87320.0,0.03105808]
[1743060137111,0.19832071,87321.0,87320.0,0.03105808]
[1743060137609,0.19259342,87321.0,87320.0,0.03105808]
[1743060144226,0.11806621,87321.0,87320.0,0.04253753]
[1743060144921,0.11806621,87321.0,87320.0,0.03105808]
[1743060145518,0.18156621,87321.0,87320.0,0.03105808]
[1743060147618,0.31809401,87321.0,87320.0,0.03105808]
[1743060150424,0.18156621,87321.0,87320.0,0.03105808]
[1743060151727,0.1872933,87321.0,87320.0,0.03105808]
[1743060154113,0.18156621,87321.0,87320.0,0.03105808]
[1743060154424,0.1872933,87321.0,87320.0,0.03105808]
[1743060155020,0.18156621,87321.0,87320.0,0.03105808]
[1743060162030,0.1800062,87321.0,87320.0,0.03105808]
[1743060163525,0.18156621,87321.0,87320.0,0.03105808]
[1743060163824,0.1800062,87321.0,87320.0,0.03105808]
[1743060164234,0.18156621,87321.0,87320.0,0.03105808]
[1743060164429,0.1800062,87321.0,87320.0,0.03105808]
[1743060164638,0.18156621,87321.0,87320.0,0.03105808]
[1743060166327,0.1800062,87321.0,87320.0,0.03105808]
[1743060166727,0.18164621,87321.0,87320.0,0.03105808]
[1743060168441,0.18737331,87321.0,87320.0,0.03105808]
[1743060169437,0.1857333,87321.0,87320.0,0.03105808]
[1743060170429,0.1857333,87321.0,87320.0,0.00045808]
[1743060170836,0.18729331,87321.0,87320.0,0.03075808]
[1743060171035,0.18156621,87321.0,87320.0,0.03075808]
[1743060171234,0.1872933,87321.0,87320.0,0.03075808]
[1743060171440,0.18729331,87321.0,87320.0,0.03075808]
[1743060171639,0.1857333,87321.0,87320.0,0.03075808]
[1743060172839,0.18737331,87321.0,87320.0,0.03075808]
[1743060173141,0.18737331,87321.0,87320.0,0.00045808]
[1743060173336,0.18164621,87321.0,87320.0,0.00045808]
[1743060173547,0.1857333,87321.0,87320.0,0.00045808]
[1743060173732,0.18733331,87321.0,87320.0,0.00045808]
[1743060175236,0.18160621,87321.0,87320.0,0.00045808]
[1743060175427,0.18733331,87321.0,87320.0,0.00045808]
[1743060179042,0.24300796,87321.0,87320.0,0.00045808]
[1743060187652,0.60380796,87321.0,87320.0,0.00045808]
[1743060189449,0.60380796,87321.0,87319.0,8e-05]
[1743060189450,0.1145075,87320.0,87319.0,8e-05]
[1743060189651,0.1145167,87313.0,87312.0,0.00011464]
[1743060189842,0.48260442,87313.0,87312.0,0.03201464]
[1743060190442,0.54580442,87313.0,87312.0,0.03201464]
[1743060190962,0.54580442,87313.0,87312.0,0.00111464]
[1743060191156,0.54580442,87313.0,87312.0,0.03301464]
[1743060192450,0.54680442,87313.0,87312.0,0.03301464]